bitfinex/quotes_ETHUSD_20240828
["timestamp","ask_amount","ask_price","bid_price","bid_amount"]
[1724835233848,2.8191328,2468.3,2468.1,8.10329]
[1724835234345,2.8191328,2468.3,2468.2,4.05153]
[1724835236600,2.8191328,2468.3,2468.1,5.03250984]
[1724835236779,2.8191328,2468.3,2468.1,4.0516]
[1724835236953,2.8191328,2468.3,2468.1,8.1032]
[1724835237492,2.8191328,2468.3,2468.1,4.0516]
[1724835237701,2.8191328,2468.3,2468.1,8.10321]
[1724835237997,2.8191328,2468.3,2468.1,4.0516]
[1724835239060,2.8191328,2468.3,2468.2,4.05153]
[1724835239289,0.4240328,2468.3,2468.2,4.05153]
[1724835240293,0.4240328,2468.3,2468.1,4.0516]
[1724835240700,0.4240328,2468.3,2468.2,0.06137931]
[1724835241295,0.4240328,2468.3,2468.2,4.11290931]
[1724835241803,0.4240328,2468.3,2468.2,0.06137931]
[1724835243821,0.4240328,2468.3,2468.2,4.7473488]
[1724835244321,2.4521,2468.5,2468.2,4.11290931]
[1724835244620,2.4521,2468.5,2468.3,4.05133]
[1724835244821,2.4521,2468.5,2468.4,4.0512]
[1724835244982,0.42402362,2468.6,2468.5,4.05104]
[1724835245180,0.42402362,2468.6,2468.5,4.11236043]
[1724835247329,2.3551,2468.8,2468.5,4.11236043]
[1724835247884,2.3551,2468.8,2468.6,4.05087]
[1724835248293,2.3551,2468.8,2468.7,0.06132043]
[1724835249296,7.44,2468.9,2468.7,4.11203043]
[1724835249521,7.44,2468.9,2468.8,4.05055]
[1724835249707,7.44,2468.9,2468.7,4.11203043]
[1724835249883,7.44,2468.9,2468.8,0.06048438]
[1724835250087,11.62600839,2468.9,2468.8,0.06048438]
[1724835250316,11.62600839,2468.9,2468.6,4.05087]
[1724835250488,9.9202,2468.9,2468.8,4.05055]
[1724835251001,9.9202,2468.9,2468.8,4.11101083]
[1724835252218,2.4802,2468.9,2468.8,4.11101083]
[1724835252631,2.4802,2468.9,2468.8,0.06046083]
[1724835252798,4.70622,2468.9,2468.6,4.05079]
[1724835252986,4.70622,2468.9,2468.7,0.06046083]
[1724835252987,2.3791,2468.8,2468.7,0.06046083]
[1724835253184,5.065632,2468.8,2468.4,8.1022]
[1724835253379,2.3791,2468.8,2468.5,4.11136487]
[1724835254817,2.3791,2468.8,2468.6,4.05087]
[1724835255188,2.3791,2468.8,2468.7,0.06035487]
[1724835256623,2.3791,2468.8,2468.5,4.05094]
[1724835256832,2.3791,2468.8,2468.7,0.06035487]
[1724835257030,2.79087384,2468.8,2468.5,4.05094]
[1724835257329,2.3791,2468.8,2468.7,0.06035487]
[1724835257530,2.3791,2468.8,2468.5,4.05094]
[1724835257737,2.3791,2468.8,2468.7,0.06035487]
[1724835258331,2.3791,2468.8,2468.5,4.05094]
[1724835258530,2.3791,2468.8,2468.7,0.06035487]
[1724835258735,5.000032,2468.8,2468.5,4.05094]
[1724835259233,5.000032,2468.8,2468.6,0.06035487]
[1724835259532,5.000032,2468.8,2468.5,4.05097]
[1724835259731,5.000032,2468.8,2468.7,0.06035487]
[1724835259934,5.000032,2468.8,2468.5,4.05097]
[1724835260110,2.3791,2468.8,2468.7,0.06035487]
[1724835260438,2.3791,2468.8,2468.5,4.05097]
[1724835260739,2.3791,2468.8,2468.7,0.06035487]
[1724835260897,2.3791,2468.8,2468.5,4.05097]
[1724835261536,5.000032,2468.8,2468.6,0.06035487]
[1724835262837,5.000032,2468.8,2468.6,4.11120487]
[1724835263128,2.3791,2468.8,2468.6,4.11120487]
[1724835263509,2.3791,2468.8,2468.7,4.05071]
[1724835263916,2.3791,2468.8,2468.7,4.11106487]
[1724835264115,2.3791,2468.8,2468.7,8.16177487]
[1724835265906,2.2649,2469.1,2468.8,4.05054]
[1724835266202,2.2649,2469.1,2468.9,0.06023714]
[1724835266509,2.2649,2469.1,2468.8,4.05054]
[1724835267034,2.2649,2469.1,2468.9,0.06023714]
[1724835267230,2.2649,2469.1,2468.8,4.05054]
[1724835267542,2.2649,2469.1,2469.0,0.06023714]
[1724835267837,3.14171922,2469.1,2468.8,4.05054]
[1724835268036,2.2649,2469.1,2468.8,4.05054]
[1724835269442,2.2649,2469.1,2468.7,4.05071]
[1724835269443,2.2649,2469.1,2468.7,4.05061]
[1724835269639,2.2649,2469.1,2468.8,4.05054]
[1724835269841,2.2649,2469.1,2468.9,4.05031]
[1724835270537,2.2649,2469.1,2469.0,0.06023714]
[1724835272046,2.4523,2468.8,2468.4,4.05113]
[1724835272208,2.4523,2468.7,2468.4,4.05112]
[1724835272839,2.4523,2468.7,2468.6,4.05087]
[1724835273950,2.3004,2468.9,2468.6,4.05087]
[1724835274441,2.3004,2468.9,2468.7,4.05063]
[1724835275005,2.3004,2468.9,2468.6,8.10165]
[1724835275213,2.3004,2468.9,2468.7,4.0507]
[1724835275543,2.3004,2468.9,2468.8,4.05055]
[1724835277880,2.3004,2468.9,2468.7,4.05068]
[1724835278251,2.3004,2468.9,2468.6,4.05086]
[1724835278451,4.05048,2468.9,2468.3,4.05128]
[1724835278662,2.2519,2468.7,2468.3,8.507688]
[1724835278866,2.2519,2468.7,2468.4,4.05118]
[1724835279675,2.2519,2469.0,2468.7,4.05068]
[1724835280050,2.2519,2468.8,2468.4,4.05106]
[1724835281384,2.2519,2468.8,2468.5,4.05093]
[1724835282983,2.2519,2468.8,2468.6,0.06034307]
[1724835283868,2.2519,2468.8,2468.7,4.05071]
[1724835284388,2.2519,2468.8,2468.7,4.11105307]
[1724835284887,2.2519,2468.8,2468.7,0.06034307]
[1724835287883,2.2519,2468.8,2468.5,4.05101]
[1724835288193,2.2519,2468.8,2468.7,0.06021357]
[1724835288395,2.2519,2468.8,2468.4,4.05107]
[1724835288712,2.2519,2468.8,2468.5,4.05101]
[1724835288986,2.2519,2468.8,2468.5,4.11109407]
[1724835289970,2.2519,2468.8,2468.6,4.05084]
[1724835290494,2.2878,2469.0,2468.7,0.06008407]
[1724835290869,2.2878,2469.0,2468.7,4.11079407]
[1724835294202,2.2878,2469.0,2468.8,4.05044]
[1724835294406,7.44,2469.1,2468.7,0.06008407]
[1724835294407,9.8802,2469.1,2468.9,4.0503]
[1724835294707,22.2202,2469.3,2468.9,4.46943889]
[1724835294915,2.4402,2469.3,2469.2,4.04989]
[1724835295504,2.4402,2469.3,2469.2,4.10985636]
[1724835296203,9.8747,2469.5,2469.3,4.04971]
[1724835296577,9.8747,2469.5,2469.4,0.05984866]
[1724835296777,2.4347,2469.5,2469.4,0.05984866]
[1724835297283,19.78,2469.6,2469.4,4.10940866]
[1724835298306,2.4034,2469.7,2469.5,4.04924]
[1724835298613,2.4034,2469.7,2469.5,8.1580691]
[1724835298779,2.4034,2469.7,2469.5,4.1087591]
[1724835298985,2.4034,2469.7,2469.5,8.1580691]
[1724835299185,2.4034,2469.7,2469.5,4.1087591]
[1724835299501,2.4034,2469.7,2469.5,4.85970834]
[1724835300003,2.4034,2469.7,2469.5,8.90901834]
[1724835300204,2.4034,2469.7,2469.6,4.04923]
[1724835300414,7.44,2469.9,2469.6,4.04923]
[1724835300724,9.8184,2469.9,2469.6,0.05930729]
[1724835301215,9.8184,2469.9,2469.6,0.54525694]
[1724835301386,9.8184,2469.9,2469.6,0.6262375]
[1724835301586,9.8184,2469.9,2469.7,4.04906]
[1724835302106,9.8184,2469.9,2469.8,0.05930729]
[1724835302416,19.78,2470.0,2469.8,4.04891]
[1724835302600,2.3523,2470.1,2469.8,4.04891]
[1724835302601,2.3523,2470.1,2469.8,4.10811729]
[1724835303115,2.3523,2470.1,2469.9,4.04873]
[1724835303318,22.1849,2470.4,2470.0,4.04858]
[1724835303477,22.1849,2470.4,2470.0,4.10788729]
[1724835303820,22.1849,2470.4,2470.0,0.05930729]
[1724835304374,22.1849,2470.4,2470.0,0.88306251]
[1724835304612,22.1849,2470.4,2470.0,4.18869149]
[1724835305411,2.3203,2470.7,2470.3,4.04799]
[1724835305775,2.3203,2470.7,2470.4,0.05827219]
[1724835306205,2.3203,2470.7,2470.4,4.04781]
[1724835306439,2.3203,2470.7,2470.5,0.05669572]
[1724835306738,2.3203,2470.7,2469.7,8.13892839]
[1724835306739,2.3172,2470.2,2469.7,4.04897]
[1724835307041,2.3172,2470.2,2469.3,13.40340839]
[1724835307247,2.3172,2470.2,2469.7,4.04906]
[1724835307412,2.3172,2470.2,2469.7,4.04898]
[1724835307618,2.3172,2470.2,2469.7,4.453878]
[1724835307939,2.3172,2470.2,2469.8,4.04881]
[1724835308306,2.3172,2470.2,2469.7,8.502858]
[1724835308508,2.3172,2470.2,2469.8,4.04889]
[1724835308909,2.3172,2470.2,2469.7,4.453878]
[1724835309238,2.3172,2470.2,2469.7,8.502848]
[1724835309644,2.3172,2470.2,2469.7,4.453868]
[1724835309846,2.3172,2470.2,2469.7,4.453858]
[1724835310347,2.3172,2470.2,2469.5,4.04929]
[1724835310559,4.0486,2470.0,2469.4,4.4553]
[1724835310709,2.461,2469.9,2469.6,4.04921]
[1724835310903,2.461,2470.2,2469.7,4.04907]
[1724835311533,2.461,2470.2,2469.8,0.08097238]
[1724835312057,2.461,2470.2,2469.9,4.04871]
[1724835312217,2.461,2470.2,2469.9,4.04865]
[1724835312418,2.461,2470.2,2469.9,8.09728]
[1724835312820,2.461,2470.4,2470.0,4.04857]
[1724835313023,2.461,2470.4,2470.0,8.09703]
[1724835313217,2.461,2470.4,2470.1,0.08095863]
[1724835313887,2.461,2470.4,2470.0,4.04846]
[1724835314344,2.461,2470.4,2470.0,8.09696]
[1724835314542,2.461,2470.4,2470.0,8.09694]
[1724835314873,2.461,2470.4,2470.0,8.09693]
[1724835315075,5.4358,2470.9,2470.1,3.15445167]
[1724835315367,6.483,2470.9,2470.3,4.04797]
[1724835315573,0.6483,2470.8,2470.4,0.08094914]
[1724835315769,2.4986,2470.7,2470.4,0.13525644]
[1724835316156,2.4986,2471.0,2470.4,4.18313644]
[1724835316365,2.4986,2471.0,2470.6,4.04759]
[1724835316567,3.153149,2471.0,2470.6,4.04759]
[1724835316878,3.153149,2471.0,2470.7,0.0543073]
[1724835317183,7.200099,2471.0,2470.4,8.09572]
[1724835317386,4.0471,2470.9,2470.8,0.0543073]
[1724835317546,4.0471,2470.9,2470.5,0.0809417]
[1724835317879,4.0471,2470.9,2470.8,0.0543073]
[1724835318081,4.0471,2470.9,2470.4,8.09566]
[1724835318082,2.2595,2470.7,2470.2,8.0963]
[1724835318287,2.2595,2470.6,2470.1,4.04841]
[1724835318449,2.2595,2470.6,2470.3,0.0543073]
[1724835321152,2.2595,2470.6,2470.3,4.1023773]
[1724835321579,2.2595,2470.6,2470.3,0.0543073]
[1724835321889,2.2595,2470.6,2470.2,4.04823]
[1724835322095,2.2595,2470.6,2470.4,0.05407233]
[1724835322470,2.2595,2470.6,2470.2,4.04823]
[1724835322987,2.2595,2470.6,2470.3,0.05407233]
[1724835325034,2.2595,2470.6,2470.3,4.10215233]
[1724835325235,2.2595,2470.6,2470.4,4.04792]
[1724835325516,2.2595,2470.6,2470.5,4.04776]
[1724835325678,2.4382,2470.8,2470.5,4.04776]
[1724835325882,2.4382,2470.8,2470.5,4.18277759]
[1724835326113,2.4382,2470.8,2470.5,4.18277864]
[1724835326576,2.4382,2470.8,2470.5,4.10183233]
[1724835327904,2.4382,2470.8,2470.5,0.05407233]
[1724835328106,5.808726,2470.8,2470.5,0.05407233]
[1724835328280,5.808726,2470.8,2470.4,4.04792]
[1724835328612,5.808726,2470.8,2470.4,4.04784]
[1724835328820,2.4382,2470.8,2470.5,4.10159086]
[1724835330530,2.4382,2470.8,2470.5,0.05386086]
[1724835332217,2.4382,2470.8,2470.5,4.10160086]
[1724835332421,7.44,2471.0,2470.7,4.04743]
[1724835332727,19.78,2471.1,2470.7,4.04743]
[1724835332728,22.1755,2471.1,2470.7,8.1757081]
[1724835333042,22.1755,2471.1,2470.8,4.1011461]
[1724835333632,22.1755,2471.1,2470.9,4.04707]
[1724835334200,22.1755,2471.1,2471.0,0.0538961]
[1724835336224,2.3357,2471.0,2470.6,4.04751]
[1724835336656,6.38267,2471.0,2470.5,4.04775]
[1724835336830,2.3242,2470.9,2470.5,4.04775]
[1724835337026,2.3242,2470.9,2470.4,4.45361]
[1724835337229,2.3242,2470.8,2470.2,4.04813]
[1724835337530,4.04813,2470.3,2469.8,4.04879]
[1724835337727,6.37246,2470.2,2469.6,4.0491]
[1724835337938,6.37246,2470.2,2469.7,1.2653153]
[1724835338141,6.37246,2470.2,2469.7,0.631292]
[1724835338343,6.37246,2470.2,2469.7,4.680262]
[1724835338562,2.3242,2470.2,2469.8,4.04889]
[1724835339057,2.3242,2470.2,2469.5,4.45516]
[1724835339058,4.04861,2470.0,2469.5,4.45516]
[1724835339267,2.3242,2469.9,2469.4,4.04948]
[1724835339430,4.04893,2469.8,2469.2,8.09957]
[1724835339768,4.04893,2469.8,2469.3,4.68374957]
[1724835339955,8.09792,2469.8,2469.4,0.63405957]
[1724835340152,8.09792,2469.8,2469.2,4.900287]
[1724835340153,4.04893,2469.8,2469.2,4.900287]
[1724835340329,4.04893,2469.8,2469.3,0.6340807]
[1724835340538,4.04893,2469.8,2469.4,0.6340807]
[1724835340738,4.04893,2469.8,2469.3,4.04972]
[1724835340973,4.04893,2469.8,2469.4,0.63407987]
[1724835341271,2.3242,2469.9,2469.4,4.04953]
[1724835341577,19.78,2470.1,2469.4,0.08098081]
[1724835341745,19.78,2470.1,2469.9,4.04864]
[1724835342067,22.2775,2470.4,2470.0,4.04843]
[1724835342253,22.2775,2470.4,2470.0,4.12938893]
[1724835342967,2.4975,2470.4,2470.1,4.04832]
[1724835343266,2.4975,2470.4,2470.1,4.12927888]
[1724835344286,2.4975,2470.4,2470.3,4.04809]
[1724835344787,2.4975,2470.4,2470.3,4.1024443]
[1724835345463,11.48733,2470.8,2470.3,4.1024443]
[1724835345781,2.4975,2470.7,2470.3,4.1024443]
[1724835345991,2.4975,2470.7,2470.3,4.04809]
[1724835346285,7.604177,2470.7,2470.1,8.09665]
[1724835346483,7.604177,2470.7,2470.1,8.09659]
[1724835346793,7.604177,2470.7,2470.2,4.18347904]
[1724835346949,6.54497,2470.7,2470.2,4.18347904]
[1724835347278,4.04761,2470.6,2470.2,0.0543543]
[1724835347585,6.54527,2470.5,2470.2,0.0543543]
[1724835347887,2.4975,2470.5,2470.2,0.0543543]
[1724835348678,2.4975,2470.5,2470.2,0.1353107]
[1724835348887,2.4975,2470.5,2470.2,0.0543543]
[1724835349048,6.54526,2470.5,2470.2,0.0543543]
[1724835349248,4.04795,2470.4,2470.2,0.0543543]
[1724835349461,2.4975,2470.3,2470.2,0.0543543]
[1724835349662,2.4975,2470.3,2469.9,4.12959464]
[1724835349989,2.4975,2470.2,2469.6,4.45503]
[1724835350144,4.04845,2470.1,2470.0,0.0543543]
[1724835350346,4.04845,2470.1,2469.7,4.04906]
[1724835350664,4.04845,2470.1,2470.0,0.0543543]
[1724835350987,6.5462,2470.0,2469.5,4.0493]
[1724835351155,6.5462,2470.0,2469.5,8.09861]
[1724835351356,6.5462,2470.0,2469.5,4.0493]
[1724835352888,4.04875,2469.9,2469.3,4.45539]
[1724835353088,4.04875,2469.9,2469.4,4.68355592]
[1724835353298,4.04875,2469.9,2469.4,4.04947]
[1724835353592,6.54608,2470.0,2469.5,4.04939]
[1724835353758,2.4848,2469.8,2469.3,4.90093]
[1724835353958,2.4848,2469.8,2469.3,4.45539]
[1724835354196,2.4848,2469.8,2469.4,4.04953]
[1724835354500,2.4848,2469.8,2469.3,8.50502]
[1724835355061,2.4848,2469.8,2469.4,4.04951]
[1724835356160,2.4848,2469.8,2469.5,0.0809799]
[1724835356388,2.4848,2469.8,2469.4,4.04951]
[1724835358879,2.4848,2469.8,2469.0,4.05021]
[1724835358880,2.3276,2469.5,2469.0,4.05021]
[1724835359092,6.377,2469.5,2469.0,4.05019]
[1724835359413,2.3276,2469.5,2469.1,8.10002]
[1724835359618,2.3276,2469.5,2469.2,4.04987]
[1724835360606,2.3341,2469.8,2469.5,4.04924]
[1724835361130,2.3341,2469.8,2469.6,0.0556235]
[1724835362236,2.3341,2469.8,2469.6,4.1048035]
[1724835362738,2.3341,2469.8,2469.6,0.0556235]
[1724835363509,2.3341,2469.8,2469.6,4.1048035]
[1724835366127,2.485,2470.1,2469.7,0.81540435]
[1724835366345,19.78,2470.4,2470.1,4.0483]
[1724835366346,22.265,2470.4,2470.1,4.0483]
[1724835366559,2.485,2470.4,2470.2,4.04812]
[1724835366764,2.485,2470.4,2470.2,0.05542367]
[1724835367068,8.09629,2470.3,2469.8,4.04891]
[1724835367360,2.485,2470.0,2469.6,4.04914]
[1724835367658,2.485,2470.0,2469.6,8.09828]
[1724835367861,6.5336,2470.0,2469.7,0.05529438]
[1724835368163,2.4088,2469.9,2469.7,0.05529438]
[1724835368366,4.04883,2469.9,2469.3,4.04963]
[1724835368533,2.4088,2469.8,2469.3,4.04963]
[1724835368719,2.4088,2469.8,2469.5,4.04927]
[1724835368925,2.4088,2469.8,2469.7,4.04907]
[1724835369126,22.1226,2470.1,2469.9,4.04864]
[1724835369353,22.1226,2470.1,2470.0,0.0553649]
[1724835369354,2.3426,2470.1,2470.0,0.0553649]
[1724835369674,2.3426,2470.1,2469.9,4.04864]
[1724835370177,2.3426,2470.1,2470.0,4.04858]
[1724835370328,2.3426,2470.1,2470.0,4.10395667]
[1724835371548,2.3426,2470.1,2470.0,0.05537667]
[1724835372225,2.3426,2470.1,2469.8,4.04891]
[1724835372450,2.3426,2469.9,2469.5,4.04928]
[1724835372769,2.3426,2469.9,2469.6,4.04912]
[1724835374937,2.3426,2469.8,2469.2,0.4058]
[1724835375161,2.488,2469.7,2469.4,4.0495]
[1724835375468,2.488,2469.7,2469.4,4.04948]
[1724835375847,2.488,2469.7,2469.5,0.05536492]
[1724835376223,6.53715,2469.7,2469.5,0.05536492]
[1724835376423,2.993915,2469.6,2469.2,8.09955]
[1724835376638,2.3402,2469.6,2469.3,4.04967]
[1724835376938,2.3402,2469.6,2469.4,0.05558825]
[1724835378588,2.3402,2469.6,2469.5,4.0494]
[1724835378764,2.3402,2469.6,2469.5,4.10502351]
[1724835379644,2.3402,2469.6,2469.5,4.73912668]
[1724835379845,2.3402,2469.6,2469.5,4.10502351]
[1724835381675,2.3402,2469.6,2469.5,4.73912263]
[1724835382003,2.3402,2469.6,2469.5,4.10502351]
[1724835383272,2.3402,2469.6,2469.5,5.63612]
[1724835384206,2.3402,2469.6,2469.5,5.63612783]
[1724835384418,2.3402,2469.6,2469.5,4.10502351]
[1724835386389,2.3402,2469.6,2469.5,0.05562351]
[1724835387926,2.3402,2469.6,2469.5,4.10502351]
[1724835388230,2.3402,2469.6,2469.5,0.05562351]
[1724835388520,2.57422,2469.6,2469.2,4.0498]
[1724835389114,2.57422,2469.6,2469.3,0.05575279]
[1724835389315,6.62347,2469.6,2469.3,0.05575279]
[1724835389493,2.4891,2469.5,2469.1,4.05004]
[1724835389689,3.571273,2469.5,2469.4,0.05575279]
[1724835389890,7.620693,2469.5,2469.1,4.05004]
[1724835390114,3.571273,2469.5,2469.1,4.05004]
[1724835390321,3.571273,2469.5,2469.2,0.05575279]
[1724835390503,2.4891,2469.5,2469.2,0.05575279]
[1724835392987,2.4891,2469.5,2469.2,4.10564279]
[1724835393398,2.4891,2469.5,2469.2,4.10557279]
[1724835395141,2.4891,2469.5,2469.2,0.05575279]
[1724835395347,2.3346,2469.4,2469.2,0.05575279]
[1724835396807,6.38417,2469.4,2469.0,4.0502]
[1724835397007,2.3346,2469.4,2469.1,0.05535248]
[1724835397227,2.2512,2469.2,2469.1,0.05535248]
[1724835397392,2.2512,2469.2,2468.9,4.05038]
[1724835397591,2.2512,2469.2,2469.0,0.05535248]
[1724835398422,6.30112,2469.2,2469.0,0.05535248]
[1724835398617,2.2984,2469.1,2468.6,4.05086]
[1724835398797,2.2984,2469.1,2468.7,0.68995212]
[1724835398798,2.2984,2469.0,2468.7,0.68995212]
[1724835398998,2.2984,2469.0,2468.7,4.10629991]
[1724835399207,2.2984,2469.0,2468.8,4.05054]
[1724835399409,2.2984,2469.0,2468.6,8.10153]
[1724835399734,2.2984,2469.0,2468.8,4.05051]
[1724835400293,2.2984,2469.0,2468.9,0.05566991]
[1724835400593,2.2984,2469.5,2468.8,0.08100806]
[1724835400799,2.2984,2469.5,2469.1,4.05]
[1724835401232,2.2984,2469.5,2469.2,0.05566991]
[1724835401527,4.04941,2469.5,2469.2,0.05566991]
[1724835401714,2.4456,2469.4,2469.2,0.05566991]
[1724835402091,2.4456,2469.4,2469.0,4.0502]
[1724835402339,2.4456,2469.4,2469.3,0.05566991]
[1724835402629,2.4456,2469.4,2469.0,4.0502]
[1724835402815,2.4456,2469.4,2469.1,0.05566991]
[1724835403597,4.699091,2469.4,2469.1,0.05566991]
[1724835403798,2.4598,2469.3,2468.9,4.05031]
[1724835404013,2.4598,2469.3,2469.0,1.07036326]
[1724835404336,2.4598,2469.3,2469.0,0.05566991]
[1724835406099,2.4598,2469.3,2469.0,4.10587991]
[1724835406605,2.4598,2469.3,2469.1,5.0647361]
[1724835406938,2.4598,2469.3,2468.9,8.10051]
[1724835407102,2.4598,2469.3,2469.2,0.05566991]
[1724835407433,2.4598,2469.3,2469.2,0.05589331]
[1724835407735,3.515671,2469.3,2469.0,4.05022]
[1724835408034,2.4716,2469.5,2469.0,0.08099992]
[1724835408217,2.4716,2469.5,2469.2,4.04977]
[1724835408421,2.4716,2469.5,2469.1,4.05]
[1724835408628,2.4716,2469.5,2469.2,0.05589331]
[1724835408629,6.52121,2469.4,2469.2,0.05589331]
[1724835408830,6.52121,2469.4,2468.7,4.05058]
[1724835408831,2.3772,2469.2,2468.7,4.05058]
[1724835408994,3.424854,2469.2,2468.8,4.10636331]
[1724835409942,3.424854,2469.2,2468.8,0.05589331]
[1724835410299,2.2648,2469.1,2468.8,0.05589331]
[1724835413924,2.2648,2469.1,2469.0,4.05022]
[1724835414246,4.46928,2469.1,2468.9,4.05026]
[1724835414540,4.46928,2469.1,2469.0,0.05589331]
[1724835414951,4.46928,2469.1,2468.7,4.05069]
[1724835415105,4.46928,2469.1,2469.0,0.05589331]
[1724835415304,4.46928,2469.1,2468.7,4.05069]
[1724835415515,4.46928,2469.1,2469.0,0.05589331]
[1724835415715,2.4291,2469.0,2468.7,4.05069]
[1724835415915,3.523938,2469.0,2468.7,4.05069]
[1724835416249,3.523938,2469.0,2468.8,0.05589331]
[1724835416925,2.4291,2469.0,2468.8,0.05589331]
[1724835417563,2.3017,2469.2,2469.1,4.05005]
[1724835417853,2.3017,2469.2,2469.1,4.10629614]
[1724835418560,19.78,2469.3,2469.2,8.09978]
[1724835418851,2.4602,2469.4,2469.3,4.04973]
[1724835419022,2.4602,2469.4,2469.3,4.10650534]
[1724835419216,2.4602,2469.4,2469.3,0.05677534]
[1724835419412,2.70622,2469.4,2469.0,4.05013]
[1724835419753,2.70622,2469.4,2469.1,0.05677534]
[1724835420241,2.4602,2469.4,2469.1,4.10680534]
[1724835420819,2.4602,2469.4,2469.1,0.05677534]
[1724835421019,2.4602,2469.4,2468.8,4.05045]
[1724835421328,2.4602,2469.4,2468.9,0.05677534]
[1724835421529,2.4329,2469.3,2468.9,0.05677534]
[1724835421982,2.4329,2469.3,2468.9,4.10711534]
[1724835422157,2.4329,2469.3,2468.9,0.05677534]
[1724835422470,4.04975,2469.3,2468.9,0.05677534]
[1724835422614,2.3126,2469.2,2468.9,4.10713534]
[1724835424755,2.3126,2469.2,2469.1,4.05005]
[1724835424927,2.2582,2469.5,2469.3,4.04972]
[1724835425332,2.2582,2469.5,2469.4,0.05677534]
[1724835427469,2.2582,2469.5,2469.1,8.09993]
[1724835427767,2.4973,2469.4,2469.2,0.05677534]
[1724835428326,6.54691,2469.4,2469.2,0.05677534]
[1724835428534,2.4787,2469.3,2468.9,4.05026]
[1724835428867,2.4787,2469.2,2468.9,4.05026]
[1724835430335,2.4787,2469.2,2468.9,8.10056]
[1724835431088,2.4787,2469.2,2469.0,4.0502]
[1724835433206,2.4787,2469.2,2468.9,4.05026]
[1724835433207,2.4787,2469.2,2468.9,4.05031]
[1724835433788,2.4787,2469.2,2468.8,4.05054]
[1724835434694,2.4787,2469.2,2468.9,4.05036]
[1724835435686,2.4787,2469.2,2469.0,0.05649307]
[1724835436063,2.4787,2469.2,2468.8,4.05053]
[1724835436263,2.4787,2469.2,2468.9,0.05649307]
[1724835437158,2.4787,2469.2,2468.9,4.10686307]
[1724835438688,2.4787,2469.2,2469.1,8.1001]
[1724835438895,2.4787,2469.2,2469.1,4.05005]
[1724835439097,2.4787,2469.2,2469.1,0.05683417]
[1724835440898,2.4787,2469.2,2469.1,4.10688417]
[1724835441106,2.4022,2469.5,2469.1,4.10688417]
[1724835441267,2.4022,2469.5,2469.2,4.04975]
[1724835441468,2.4022,2469.5,2469.3,0.05679889]
[1724835441662,2.4022,2469.5,2469.2,4.04988]
[1724835441901,2.4022,2469.5,2469.3,0.05679889]
[1724835442262,2.4022,2469.5,2469.2,4.04988]
[1724835442502,2.4022,2469.5,2469.3,0.05679889]
[1724835442803,2.4022,2469.5,2469.3,4.46038789]
[1724835442992,2.4022,2469.5,2469.4,0.05679889]
[1724835446416,2.4022,2469.5,2469.4,4.10635889]
[1724835448897,2.397,2469.7,2469.6,4.04923]
[1724835449418,2.397,2469.7,2469.6,4.10559372]
[1724835449589,2.397,2469.7,2469.6,4.04923]
[1724835449972,2.397,2469.7,2469.6,4.10559372]
[1724835450475,2.4027415,2470.1,2470.0,4.04858]
[1724835450710,0.0043415,2470.1,2470.0,8.15302981]
[1724835451009,0.0043415,2470.1,2470.0,9.13873131]
[1724835451368,0.0043415,2470.1,2470.0,10.84271648]
[1724835451568,0.0043415,2470.1,2470.0,9.68873131]
[1724835454641,0.0043415,2470.1,2470.0,11.95253131]
[1724835454802,0.0043415,2470.1,2470.0,9.68873131]
[1724835458130,0.0043415,2470.1,2470.0,5.09015131]
[1724835460615,2.4466415,2470.1,2470.0,0.05586981]
[1724835460821,2.4466415,2470.1,2469.8,4.0488]
[1724835461127,2.4466415,2470.1,2469.9,0.05445916]
[1724835461938,2.4466415,2470.1,2469.9,4.10316916]
[1724835462499,2.4466415,2470.1,2470.0,4.04858]
[1724835463340,2.4466415,2470.1,2470.0,4.10303916]
[1724835466522,2.4466415,2470.1,2470.0,0.05445916]
[1724835466941,2.4466415,2470.1,2469.9,4.04874]
[1724835467241,2.4466415,2470.1,2470.0,0.05445916]
[1724835467610,2.4466415,2470.1,2470.0,4.10303916]
[1724835469833,0.0043415,2470.1,2470.0,8.15161916]
[1724835470047,0.0043415,2470.1,2470.0,8.96678108]
[1724835477770,0.0043415,2470.1,2470.0,10.66969719]
[1724835478066,0.0043415,2470.1,2470.0,16.30797774]
[1724835481868,0.0043415,2470.1,2470.0,19.30797774]
[1724835482027,0.0043415,2470.1,2470.0,21.57177774]
[1724835482233,0.00027272,2470.1,2470.0,21.57177774]
[1724835482943,0.00027272,2470.1,2470.0,19.30797774]
[1724835483666,0.00027272,2470.1,2470.0,20.71679164]
[1724835483864,0.00027272,2470.1,2470.0,24.76537164]
[1724835484070,0.00027272,2470.1,2470.0,27.02917164]
[1724835484365,0.00027272,2470.1,2470.0,28.50843833]
[1724835484569,0.00027272,2470.1,2470.0,29.1422693]
[1724835485537,0.00027272,2470.1,2470.0,29.98147556]
[1724835487035,0.00027272,2470.1,2470.0,26.8784693]
[1724835487246,0.00027272,2470.1,2470.0,22.8298893]
[1724835487845,0.00027272,2470.1,2470.0,22.19605833]
[1724835488148,0.00027272,2470.1,2470.0,16.52838471]
[1724835488343,0.00027272,2470.1,2470.0,14.41520236]
[1724835488561,2.28357272,2470.1,2470.0,14.41520236]
[1724835488734,2.28357272,2470.1,2470.0,13.00641413]
[1724835489569,2.28357272,2470.1,2470.0,13.55641413]
[1724835489877,2.28357272,2470.1,2470.0,10.55641413]
[1724835490051,2.28357272,2470.1,2470.0,9.74125221]
[1724835490662,2.28357272,2470.1,2470.0,0.68829221]
[1724835491482,2.28357272,2470.1,2470.0,4.10303916]
[1724835491647,2.28357272,2470.1,2470.0,4.73698207]
[1724835492047,2.28357272,2470.1,2470.0,11.03847818]
[1724835492440,2.28357272,2470.1,2470.0,9.33556207]
[1724835492884,2.28357272,2470.1,2470.0,5.28698207]
[1724835494665,2.28357272,2470.1,2470.0,0.68840207]